fUST/lending_fUST_20250920
["ID","MTS","AMOUNT","RATE_DAILY","PERIOD"]
[386447720,1758301845502,-572.0,0.00024482,2]
[386447721,1758301845512,-700.0,0.00024522,2]
[386447722,1758301845521,-869.42,0.00024563,2]
[386447723,1758301845530,-480.0,0.00024563,2]
[386447724,1758301845540,-500.0,0.00024601,2]
[386447725,1758301845549,-23883.80459778,0.0002465,2]
[386447726,1758301845569,-704.12793569,0.0002465,2]
[386447727,1758301845739,-8992.60000006,0.0002465,2]
[386447728,1758301846094,-480.0,0.00021101,2]
[386447729,1758301846104,-23184.94326194,0.0002465,2]
[386447730,1758301846114,-232.0,0.00024651,2]
[386447731,1758301846123,-380.0,0.00024658,2]
[386447732,1758301846133,-151.0,0.00024658,2]
[386447733,1758301846143,-2037.37,0.00024662,2]
[386447734,1758301846152,-480.0,0.00024662,2]
[386447735,1758301846161,-884.13,0.00024662,2]
[386447736,1758301846171,-792.94,0.00024662,2]
[386447737,1758301846180,-593.11,0.00024662,2]
[386447738,1758301846189,-480.0,0.00024662,2]
[386447739,1758301846199,-745.44,0.00024662,2]
[386447740,1758301846209,-480.0,0.00024662,2]
[386447741,1758301846218,-501.92,0.00024663,2]
[386447742,1758301846228,-480.0,0.00024663,2]
[386447743,1758301846237,-480.0,0.00024663,2]
[386447744,1758301846247,-480.0,0.00024663,2]
[386447745,1758301846257,-514.99,0.00024663,2]
[386447746,1758301846266,-666.09,0.00024663,2]
[386447747,1758301846276,-228.99409805,0.00024663,2]
[386447748,1758301846285,-519.86,0.00024663,2]
[386447749,1758301846295,-480.0,0.00024663,2]
[386447750,1758301846305,-508.5,0.00024663,2]
[386447751,1758301846315,-812.41,0.00024663,2]
[386447752,1758301846325,-480.0,0.00024663,2]
[386447753,1758301846334,-490.95,0.00024663,2]
[386447754,1758301846343,-1676.59,0.00024663,2]
[386447755,1758301846353,-693.87,0.00024663,2]
[386447756,1758301846363,-631.93,0.00024663,2]
[386447757,1758301846373,-638.56,0.00024664,2]
[386447758,1758301846383,-1774.2,0.00024664,2]
[386447759,1758301846393,-7049.34,0.00024664,2]
[386447760,1758301846402,-480.0,0.00024664,2]
[386447761,1758301846412,-877.65,0.00024664,2]
[386447762,1758301846421,-4761.12801682,0.00024665,2]
[386447763,1758301846431,-500.0,0.00024665,2]
[386447764,1758301846440,-151.0,0.00024665,2]
[386447765,1758301846450,-500.0,0.00024665,2]
[386447766,1758301846460,-151.0,0.00024665,2]
[386447767,1758301846469,-177.67235037,0.00024665,2]
[386447768,1758301846480,-151.000001,0.00024665,2]
[386447769,1758301846490,-161.66044801,0.00024665,2]
[386447770,1758301846499,-188.7683946,0.00024665,2]
[386447771,1758301846509,-547.0,0.00024665,2]
[386447772,1758301846518,-245.0,0.00024665,2]
[386447773,1758301846527,-245.0,0.00024665,2]
[386447774,1758301846537,-500.0,0.00024673,2]
[386447775,1758301846547,-500.0,0.00024673,2]
[386447776,1758301846556,-500.0,0.00024673,2]
[386447777,1758301846566,-643.24831229,0.00024673,2]
[386447778,1758301846575,-500.0,0.00024673,2]
[386447779,1758301846584,-500.0,0.00024673,2]
[386447780,1758301846594,-500.0,0.00024673,2]
[386447781,1758301846603,-500.0,0.00024673,2]
[386447782,1758301846613,-502.94326399,0.00024673,2]
[386447783,1758301846622,-500.0,0.00024673,2]
[386447784,1758301846631,-324.14810916,0.00024673,2]
[386447785,1758301846641,-316.51801258,0.00024674,2]
[386447786,1758301846650,-232.0,0.00024677,2]
[386447787,1758301846660,-460.0,0.00024684,2]
[386447788,1758301846669,-232.0,0.00024698,2]
[386447789,1758301846678,-572.0,0.00024707,2]
[386447790,1758301846687,-572.0,0.0002471,2]
[386447791,1758301846697,-492.5125791,0.00024773,2]
[386447792,1758301846706,-501.9726733,0.00024773,2]
[386447793,1758301846715,-502.03271147,0.00024773,2]
[386447794,1758301846725,-500.0,0.00024773,2]
[386447795,1758301846734,-16588.55460824,0.00024774,2]
[386447796,1758301846743,-152.123849,0.000248,7]
[386447797,1758301846753,-151.0,0.000248,7]
[386447798,1758301846762,-151.0,0.000248,7]
[386447799,1758301846771,-151.0,0.000248,7]
[386447800,1758301846781,-151.0,0.000248,7]
[386447801,1758301846791,-151.0,0.000248,7]
[386447802,1758301846800,-151.0,0.000248,7]
[386447803,1758301846810,-151.0,0.000248,7]
[386447804,1758301846819,-151.0,0.000248,7]
[386447805,1758301846829,-179.435586,0.000248,7]
[386447806,1758301846838,-151.0,0.000248,7]
[386447807,1758301846848,-151.0,0.000248,7]
[386447808,1758301846858,-151.0,0.000248,7]
[386447809,1758301846869,-151.0,0.000248,7]
[386447810,1758301846878,-151.0,0.000248,7]
[386447811,1758301846891,-151.0,0.000248,7]
[386447812,1758301846901,-151.0,0.000248,7]
[386447813,1758301846911,-151.0,0.000248,7]
[386447814,1758301846920,-151.0,0.000248,7]
[386447815,1758301846929,-151.0,0.000248,7]
[386447816,1758301846939,-151.0,0.000248,7]
[386447817,1758301846948,-151.0,0.000248,7]
[386447818,1758301846959,-6007.30167729,0.000248,2]
[386447819,1758301846972,-151.0,0.000248,7]
[386447820,1758301846982,-151.0,0.000248,7]
[386447821,1758301846992,-225.66971,0.000248,7]
[386447822,1758301847002,-225.66971,0.000248,7]
[386447823,1758301847011,-151.0,0.000248,7]
[386447824,1758301847022,-225.66971,0.000248,7]
[386447825,1758301847031,-151.0,0.000248,7]
[386447826,1758301847041,-225.66971,0.000248,7]
[386447827,1758301847050,-151.0,0.000248,7]
[386447828,1758301847060,-151.0,0.000248,7]
[386447829,1758301847069,-153.989698,0.000248,7]
[386447830,1758301847078,-152.590971,0.000248,7]
[386447831,1758301847088,-151.0,0.000248,7]
[386447832,1758301847097,-151.0,0.000248,7]
[386447833,1758301847106,-151.0,0.000248,7]
[386447834,1758301847116,-151.0,0.000248,7]
[386447835,1758301847125,-151.0,0.000248,7]
[386447836,1758301847135,-245.997743,0.000248,7]
[386447837,1758301847145,-151.0,0.000248,7]
[386447838,1758301847154,-151.0,0.000248,7]
[386447839,1758301847163,-151.0,0.000248,7]
[386447840,1758301847172,-13706.2471704,0.000248,2]
[386447841,1758301847181,-151.0,0.000248,7]
[386447842,1758301847191,-175.969831,0.000248,7]
[386447843,1758301847200,-151.0,0.000248,7]
[386447844,1758301847209,-160.920863,0.000248,7]
[386447845,1758301847218,-175.969831,0.000248,7]
[386447846,1758301847228,-518.04777,0.000248,7]
[386447847,1758301847237,-175.969831,0.000248,7]
[386447848,1758301847247,-518.04777,0.000248,7]
[386447849,1758301847256,-175.969831,0.000248,7]
[386447850,1758301847265,-151.0,0.000248,7]
[386447851,1758301847275,-518.04777,0.000248,7]
[386447852,1758301847284,-518.04777,0.000248,7]
[386447853,1758301847293,-280.552805,0.000248,7]
[386447854,1758301847303,-280.552805,0.000248,7]
[386447855,1758301847312,-280.552805,0.000248,7]
[386447856,1758301847321,-280.552805,0.000248,7]
[386447857,1758301847331,-151.0,0.000248,7]
[386447858,1758301847340,-151.0,0.000248,7]
[386447859,1758301847349,-973.766937,0.000248,7]
[386447860,1758301847359,-973.766937,0.000248,7]
[386447861,1758301847368,-151.0,0.000248,7]
[386447862,1758301847377,-973.766937,0.000248,7]
[386447863,1758301847387,-973.766937,0.000248,7]
[386447864,1758301847397,-151.0,0.000248,7]
[386447865,1758301847406,-151.0,0.000248,7]
[386447866,1758301847415,-261.149125,0.000248,7]
[386447867,1758301847425,-151.0,0.000248,7]
[386447868,1758301847435,-261.149125,0.000248,7]
[386447869,1758301847445,-261.149125,0.000248,7]
[386447870,1758301847454,-261.149125,0.000248,7]
[386447871,1758301847464,-277.459476,0.000248,7]
[386447872,1758301847474,-277.459476,0.000248,7]
[386447873,1758301847484,-277.459476,0.000248,7]
[386447874,1758301847493,-277.459476,0.000248,7]
[386447875,1758301847502,-151.0,0.000248,7]
[386447876,1758301847512,-151.0,0.000248,7]
[386447877,1758301847522,-242.588844,0.000248,7]
[386447879,1758301847532,-177.03570753,0.000248,2]
[386447881,1758301847541,-151.0,0.000248,7]
[386447883,1758301847550,-151.0,0.000248,7]
[386447885,1758301847559,-4822.70066455,0.000248,2]
[386447887,1758301847568,-151.0,0.000248,7]
[386447900,1758301847690,-151.0,0.000248,7]
[386447902,1758301847700,-151.0,0.000248,7]
[386447904,1758301847710,-232.0,0.000248,2]
[386447906,1758301847719,-2500.0,0.00024826,2]
[386447907,1758301847728,-250.0,0.00024836,2]
[386447908,1758301847737,-869.42,0.00024837,2]
[386447909,1758301847746,-480.0,0.00024837,2]
[386447910,1758301847756,-572.0,0.00024871,2]
[386447911,1758301847765,-500.0,0.00024873,2]
[386447912,1758301847774,-500.0,0.00024873,2]
[386447913,1758301847783,-3000.0,0.00024879,2]
[386447914,1758301847794,-80872.06616955,0.0002488,7]
[386447915,1758301847804,-178.911027,0.000249,7]
[386447916,1758301847813,-159.139837,0.000249,7]
[386447917,1758301847822,-151.0,0.000249,7]
[386447918,1758301847831,-151.0,0.000249,7]
[386447919,1758301847841,-151.0,0.000249,7]
[386447920,1758301847850,-151.0,0.000249,7]
[386447921,1758301847860,-151.0,0.000249,7]
[386447922,1758301847869,-151.0,0.000249,7]
[386447923,1758301847879,-151.0,0.000249,7]
[386447924,1758301847892,-151.0,0.000249,7]
[386447925,1758301847901,-151.0,0.000249,7]
[386447926,1758301847910,-151.0,0.000249,7]
[386447927,1758301847920,-151.0,0.000249,7]
[386447928,1758301847930,-151.0,0.000249,7]
[386447929,1758301847940,-151.0,0.000249,7]
[386447930,1758301847949,-151.0,0.000249,7]
[386447931,1758301847959,-151.0,0.000249,7]
[386447932,1758301847969,-151.0,0.000249,7]
[386447933,1758301847978,-151.0,0.000249,7]
[386447934,1758301847988,-151.0,0.000249,7]
[386447935,1758301847997,-151.0,0.000249,7]
[386447936,1758301848007,-151.0,0.000249,7]
[386447937,1758301848016,-151.0,0.000249,7]
[386447938,1758301848025,-151.0,0.000249,7]
[386447939,1758301848034,-151.0,0.000249,7]
[386447940,1758301848044,-332.518182,0.000249,7]
[386447941,1758301848053,-332.518182,0.000249,7]
[386447942,1758301848063,-332.518182,0.000249,7]
[386447943,1758301848072,-332.518182,0.000249,7]
[386447944,1758301848082,-151.0,0.000249,7]
[386447945,1758301848091,-151.0,0.000249,7]
[386447946,1758301848101,-151.0,0.000249,7]
[386447947,1758301848111,-152.240757,0.000249,7]
[386447948,1758301848120,-151.0,0.000249,7]
[386447949,1758301848130,-151.0,0.000249,7]
[386447950,1758301848139,-151.0,0.000249,7]
[386447951,1758301848148,-243.185301,0.000249,7]
[386447952,1758301848158,-243.185301,0.000249,7]
[386447953,1758301848167,-243.185301,0.000249,7]
[386447954,1758301848177,-243.185301,0.000249,7]
[386447955,1758301848187,-151.0,0.000249,7]
[386447956,1758301848198,-151.0,0.000249,7]
[386447957,1758301848207,-151.0,0.000249,7]
[386447959,1758301848217,-151.0,0.000249,7]
[386447961,1758301848227,-151.0,0.000249,7]
[386447963,1758301848237,-151.0,0.000249,7]
[386447965,1758301848247,-298.453598,0.000249,7]
[386447967,1758301848256,-151.0,0.000249,7]
[386447969,1758301848266,-151.996638,0.000249,7]
[386447971,1758301848275,-151.0,0.000249,7]
[386447973,1758301848286,-152.523801,0.000249,7]
[386447975,1758301848296,-151.0,0.000249,7]
[386447977,1758301848305,-151.0,0.000249,7]
[386447979,1758301848315,-151.0,0.000249,7]
[386447981,1758301848324,-151.0,0.000249,7]
[386447983,1758301848334,-151.0,0.000249,7]
[386447985,1758301848343,-151.0,0.000249,7]
[386447987,1758301848351,-152.959036,0.000249,7]
[386447989,1758301848361,-295.889814,0.000249,7]
[386447991,1758301848370,-151.0,0.000249,7]
[386447993,1758301848379,-151.0,0.000249,7]
[386447995,1758301848388,-151.0,0.000249,7]
[386447997,1758301848398,-151.0,0.000249,7]
[386447999,1758301848408,-151.0,0.000249,7]
[386448001,1758301848418,-151.0,0.000249,7]
[386448003,1758301848427,-151.0,0.000249,7]
[386448005,1758301848436,-151.0,0.000249,7]
[386448007,1758301848446,-151.0,0.000249,7]
[386448009,1758301848456,-151.0,0.000249,7]
[386448011,1758301848465,-151.0,0.000249,7]
[386448013,1758301848475,-151.0,0.000249,7]
[386448015,1758301848484,-151.0,0.000249,7]
[386448017,1758301848493,-225.66971,0.000249,7]
[386448019,1758301848503,-225.66971,0.000249,7]
[386448021,1758301848512,-151.0,0.000249,7]
[386448023,1758301848522,-225.66971,0.000249,7]
[386448025,1758301848532,-151.0,0.000249,7]
[386448027,1758301848542,-225.66971,0.000249,7]
[386448029,1758301848551,-151.0,0.000249,7]
[386448031,1758301848560,-151.0,0.000249,7]
[386448033,1758301848570,-151.0,0.000249,7]
[386448035,1758301848579,-151.0,0.000249,7]
[386448037,1758301848588,-151.0,0.000249,7]
[386448039,1758301848598,-151.0,0.000249,7]
[386448041,1758301848607,-238.028742,0.000249,7]
[386448043,1758301848617,-151.0,0.000249,7]
[386448045,1758301848626,-322984.41549597,0.000249,2]
[386448126,1758301849424,480.0,0.000211,2]
[386448902,1758301860185,952.92,0.000211,2]
[386449004,1758301861196,480.0,0.000211,2]
[386449741,1758301870836,480.0,0.000211,2]
[386449842,1758301872568,480.0,0.000211,2]
[386450314,1758301877790,480.0,0.000211,2]
[386451054,1758301885885,480.0,0.000211,2]
[386451252,1758301887989,326.95,0.000211,2]
[386451559,1758301897232,316.46230659,0.000211,2]
[386451560,1758301903915,480.0,0.000211,2]
[386451561,1758301923308,300.0,0.000211,2]
[386451562,1758301925083,913.22,0.000211,2]
[386451564,1758301937184,1200.0,0.000211,2]
[386451565,1758301940848,480.0,0.000211,2]
[386451566,1758301945475,480.0,0.000211,2]
[386451567,1758301948102,480.0,0.000211,2]
[386451568,1758301968889,480.0,0.000211,2]
[386451569,1758301969659,480.0,0.000211,2]
[386451570,1758301971410,-480.0,0.00021101,2]
[386451571,1758301971438,-480.0,0.00021101,2]
[386451572,1758301971466,-480.0,0.00021101,2]
[386451574,1758301971494,-480.0,0.00021101,2]
[386451575,1758301971522,-480.0,0.00021101,2]
[386451576,1758301971551,-480.0,0.00021101,2]
[386451577,1758301971578,-480.0,0.00021101,2]
[386451578,1758301971605,-480.0,0.00021101,2]
[386451579,1758301971758,-480.0,0.00021101,2]
[386451580,1758301971788,-480.0,0.00021101,2]
[386451581,1758301982537,300.0,0.000211,2]
[386451585,1758301994518,480.0,0.000211,2]
[386451587,1758302008377,480.0,0.000211,2]
[386451594,1758302014294,480.0,0.000211,2]
[386451610,1758302025551,480.0,0.000211,2]
[386451611,1758302042485,300.0,0.000211,2]
[386451612,1758302043753,480.0,0.000211,2]
[386451613,1758302051671,507.81,0.000211,2]
[386451614,1758302056495,-698.58,0.00021101,2]
[386451615,1758302056528,-480.0,0.00021101,2]
[386451616,1758302056557,-480.0,0.00021101,2]
[386451617,1758302056585,-480.0,0.00021101,2]
[386451618,1758302056614,-480.0,0.00021101,2]
[386451619,1758302056644,-341.97322422,0.00021101,2]
[386451620,1758302056672,-480.0,0.00021101,2]
[386451621,1758302056700,-480.0,0.00021101,2]
[386451622,1758302056728,-480.0,0.00021101,2]
[386451623,1758302056755,-480.0,0.00021101,2]
[386451624,1758302067267,480.0,0.000211,2]
[386451625,1758302067541,480.0,0.000211,2]
[386451627,1758302086752,-480.0,0.00021101,2]
[386451628,1758302086781,-480.0,0.00021101,2]
[386451629,1758302086812,-896.43,0.00021101,2]
[386451630,1758302086841,-480.0,0.00021101,2]
[386451631,1758302086868,-480.0,0.00021101,2]
[386451632,1758302086896,-480.0,0.00021101,2]
[386451633,1758302086924,-229.4602389,0.00021101,2]
[386451634,1758302086950,-480.0,0.00021101,2]
[386451635,1758302086979,-480.0,0.00021101,2]
[386451636,1758302087008,-480.0,0.00021101,2]
[386451637,1758302088330,480.0,0.000211,2]
[386451638,1758302101377,300.0,0.000211,2]
[386451639,1758302102161,300.0,0.000211,2]
[386451640,1758302102525,300.0,0.000211,2]
[386451641,1758302102584,300.0,0.000211,2]
[386451642,1758302102682,300.0,0.000211,2]
[386451643,1758302104751,749.41,0.000211,2]
[386451644,1758302106582,-489.30564276,0.00021101,2]
[386451645,1758302106611,-480.0,0.00021101,2]
[386451646,1758302106639,-480.0,0.00021101,2]
[386451647,1758302106671,-480.0,0.00021101,2]
[386451648,1758302106702,-500.0,0.00021101,2]
[386451649,1758302106734,-480.0,0.00021101,2]
[386451650,1758302106763,-480.0,0.00021101,2]
[386451651,1758302106790,-480.0,0.00021101,2]
[386451652,1758302106818,-480.0,0.00021101,2]
[386451653,1758302106847,-480.0,0.00021101,2]
[386451654,1758302113307,480.0,0.000211,2]
[386451655,1758302116261,480.0,0.000211,2]
[386451656,1758302132399,487.75,0.000211,2]
[386451657,1758302161644,-480.0,0.00021101,2]
[386451658,1758302161676,-480.0,0.00021101,2]
[386451659,1758302161704,-480.0,0.00021101,2]
[386451660,1758302161732,-480.0,0.00021101,2]
[386451661,1758302161761,-480.0,0.00021101,2]
[386451662,1758302161792,-484.913735,0.00021101,2]
[386451663,1758302161823,-480.0,0.00021101,2]
[386451664,1758302163383,300.0,0.000211,2]
[386451665,1758302169282,-4699.56,0.00021101,2]
[386451666,1758302169309,-120.89,0.00021101,2]
[386451667,1758302174979,480.0,0.000211,2]
[386451669,1758302179581,-480.0,0.00021101,2]
[386451670,1758302179611,-480.0,0.00021101,2]
[386451671,1758302179641,-3576.26,0.00021101,2]
[386451672,1758302192321,480.0,0.000211,2]
[386451673,1758302193649,480.0,0.000211,2]
[386451674,1758302199628,-927.49,0.00021101,2]
[386451675,1758302199656,-562.16388495,0.00021101,2]
[386451676,1758302199684,-480.0,0.00021101,2]
[386451677,1758302199865,-480.0,0.00021101,2]
[386451678,1758302199893,-480.0,0.00021101,2]
[386451679,1758302199921,-480.0,0.00021101,2]
[386451680,1758302199949,-480.0,0.00021101,2]
[386451681,1758302214158,480.0,0.000211,2]
[386451683,1758302219623,-2876.18,0.00021101,2]
[386451684,1758302219651,-480.0,0.00021101,2]
[386451685,1758302219681,-480.0,0.00021101,2]
[386451686,1758302219709,-480.0,0.00021101,2]
[386451687,1758302219737,-480.0,0.00021101,2]
[386451688,1758302222448,300.0,0.000211,2]
[386451689,1758302231848,1018.76,0.000211,2]
[386451693,1758302251498,480.0,0.000211,2]
[386451694,1758302252258,765.03,0.000211,2]
[386451695,1758302263575,480.0,0.000211,2]
[386451696,1758302273000,559.61,0.000211,2]
[386451697,1758302279621,480.0,0.000211,2]
[386451698,1758302279708,501.6,0.000211,2]
[386451700,1758302285666,480.0,0.000211,2]
[386451704,1758302318174,480.0,0.000211,2]
[386451706,1758302342592,300.0,0.000211,2]
[386451707,1758302347208,500.0,0.000211,2]
[386451708,1758302349906,-480.0,0.00021101,2]
[386451709,1758302349936,-480.0,0.00021101,2]
[386451710,1758302349964,-464.39690693,0.00021101,2]
[386451711,1758302349992,-407.7531245,0.00021101,2]
[386451712,1758302350020,-480.0,0.00021101,2]
[386451713,1758302350048,-480.0,0.00021101,2]
[386451714,1758302350076,-480.0,0.00021101,2]
[386451715,1758302350104,-480.0,0.00021101,2]
[386451716,1758302350131,-480.0,0.00021101,2]
[386451717,1758302350162,-480.0,0.00021101,2]
[386451718,1758302350191,-95.70993714,0.00021101,2]
[386451721,1758302362053,1243.92389436,0.00021074,2]
[386451722,1758302373685,572.52,0.000211,2]
[386451723,1758302379983,1116.03,0.000211,2]
[386451724,1758302392114,-384.29006286,0.00021101,2]
[386451725,1758302392147,-621.67,0.00021101,2]
[386451726,1758302392178,-480.0,0.00021101,2]
[386451727,1758302392209,-480.0,0.00021101,2]
[386451728,1758302392238,-480.0,0.00021101,2]
[386451729,1758302392268,-480.0,0.00021101,2]
[386451730,1758302392298,-480.0,0.00021101,2]
[386451731,1758302392326,-480.0,0.00021101,2]
[386451732,1758302392354,-480.0,0.00021101,2]
[386451733,1758302392383,-480.0,0.00021101,2]
[386451734,1758302402487,300.0,0.000211,2]
[386451735,1758302403995,480.0,0.000211,2]
[386451736,1758302409359,654.0,0.000211,2]
[386451737,1758302434093,480.0,0.000211,2]
[386451738,1758302458596,480.0,0.000211,2]
[386451740,1758302462568,300.0,0.000211,2]
[386451741,1758302472248,-480.0,0.00021101,2]
[386451742,1758302472280,-462.56121388,0.00021101,2]
[386451743,1758302472311,-480.0,0.00021101,2]
[386451744,1758302472340,-480.0,0.00021101,2]
[386451745,1758302472370,-480.0,0.00021101,2]
[386451746,1758302472400,-1302.63,0.00021101,2]
[386451747,1758302472428,-571.07937864,0.00021101,2]
[386451748,1758302472457,-480.0,0.00021101,2]
[386451749,1758302472484,-47.46881496,0.00021101,2]
[386451750,1758302495595,480.0,0.000211,2]
[386451751,1758302500173,-432.53118504,0.00021101,2]
[386451752,1758302500203,-480.0,0.00021101,2]
[386451753,1758302500234,-339.59200893,0.00021101,2]
[386451754,1758302500262,-480.0,0.00021101,2]
[386451755,1758302500296,-480.0,0.00021101,2]
[386451756,1758302500326,-480.0,0.00021101,2]
[386451757,1758302500356,-528.89726469,0.00021101,2]
[386451758,1758302500386,-523.35,0.00021101,2]
[386451759,1758302500416,-480.0,0.00021101,2]
[386451760,1758302500443,-309.93108268,0.00021101,2]
[386451766,1758302522802,300.0,0.000211,2]
[386451770,1758302561663,500.0,0.000211,2]
[386451771,1758302562387,-931.40691732,0.00021101,2]
[386451772,1758302562415,-480.0,0.00021101,2]
[386451773,1758302562442,-480.0,0.00021101,2]
[386451774,1758302562470,-480.0,0.00021101,2]
[386451775,1758302562497,-480.0,0.00021101,2]
[386451776,1758302562526,-480.0,0.00021101,2]
[386451777,1758302562554,-480.0,0.00021101,2]
[386451778,1758302562582,-377.19616536,0.00021101,2]
[386451779,1758302562825,500.0,0.000211,2]
[386451780,1758302570376,-1622.80383464,0.00021101,2]
[386451781,1758302570405,-2000.0,0.00021101,2]
[386451782,1758302570435,-754.40233072,0.00021101,2]
[386451783,1758302580292,-1245.59766928,0.00021101,2]
[386451784,1758302580327,-313.39,0.00021101,2]
[386451785,1758302580359,-1684.77466144,0.00021101,2]
[386451786,1758302582534,300.0,0.000211,2]
[386451787,1758302615350,-3512.48533856,0.00021101,2]
[386451788,1758302615378,-480.0,0.00021101,2]
[386451789,1758302615408,-480.0,0.00021101,2]
[386451790,1758302615435,-480.0,0.00021101,2]
[386451792,1758302645529,500.0,0.000211,2]
[386451795,1758302650013,480.0,0.000211,2]
[386451825,1758302831250,1088.43340753,0.00021063,2]
[386451826,1758302833155,-500.0,0.00021101,2]
[386451827,1758302833175,-480.0,0.00021101,2]
[386451828,1758302833195,-480.0,0.00021101,2]
[386451829,1758302833215,-300.0,0.00021162,2]
[386451830,1758302833234,-247.25093659,0.00021163,2]
[386451831,1758302833255,-522.15934902,0.00021163,2]
[386451832,1758302833277,-500.0,0.00021163,2]
[386451833,1758302833298,-158.13894147,0.00021163,2]
[386451834,1758302833321,-500.0,0.00021163,2]
[386451835,1758302833341,-500.0,0.00021163,2]
[386451836,1758302833360,-500.39168229,0.00021163,2]
[386451837,1758302833382,-500.0,0.00021163,2]
[386451838,1758302833412,-247.87638139,0.00021163,2]
[386451839,1758302833435,-500.0,0.00021163,2]
[386451840,1758302833455,-395.2911753,0.00021163,2]
[386451841,1758302833475,-500.0,0.00021163,2]
[386451842,1758302833494,-500.0,0.00021163,2]
[386451843,1758302833516,-500.0,0.00021163,2]
[386451844,1758302833536,-204.23869203,0.00021163,2]
[386451845,1758302833556,-500.0,0.00021163,2]
[386451846,1758302833578,-500.0,0.00021163,2]
[386451847,1758302833598,-500.0,0.00021163,2]
[386451848,1758302833619,-500.0,0.00021163,2]
[386451849,1758302833639,-500.0,0.00021163,2]
[386451850,1758302833658,-500.0,0.00021163,2]
[386451851,1758302833676,-500.0,0.00021163,2]
[386451852,1758302833698,-500.0,0.00021163,2]
[386451853,1758302833721,-487.52689972,0.00021163,2]
[386451854,1758302833741,-500.0,0.00021163,2]
[386451855,1758302833762,-500.0,0.00021163,2]
[386451856,1758302833783,-500.0,0.00021163,2]
[386451857,1758302833804,-500.0,0.00021163,2]
[386451858,1758302833823,-500.0,0.00021163,2]
[386451859,1758302833843,-500.0,0.00021163,2]
[386451860,1758302833862,-585.97127715,0.00021163,2]
[386451861,1758302833881,-500.0,0.00021163,2]
[386451862,1758302833902,-500.0,0.00021163,2]
[386451863,1758302833923,-500.0,0.00021163,2]
[386451864,1758302833944,-350.0,0.00021163,2]
[386451865,1758302833964,-500.0,0.00021163,2]
[386451866,1758302833984,-500.0,0.00021163,2]
[386451867,1758302834006,-500.0,0.00021163,2]
[386451868,1758302834027,-500.0,0.00021163,2]
[386451869,1758302834047,-500.0,0.00021163,2]